fUSD/lending_fUSD_20251210
["ID","MTS","AMOUNT","RATE_DAILY","PERIOD"]
[398089298,1765363872554,-500.0,0.00014794,2]
[398089299,1765363872565,-500.0,0.00014794,2]
[398089300,1765363872576,-151.0,0.00014794,2]
[398089301,1765363872585,-500.0,0.00014794,2]
[398089302,1765363872595,-500.0,0.00014794,2]
[398089303,1765363872604,-548.02,0.00014794,2]
[398089304,1765363872615,-151.0,0.00014794,2]
[398089305,1765363872625,-500.0,0.00014794,2]
[398089306,1765363872638,-500.0,0.00014794,2]
[398089307,1765363872648,-500.0,0.00014794,2]
[398089308,1765363872659,-151.0,0.00014794,2]
[398089309,1765363872668,-500.0,0.00014794,2]
[398089310,1765363872679,-500.0,0.00014794,2]
[398089311,1765363872689,-500.0,0.00014794,2]
[398089312,1765363872698,-970.77,0.00014794,2]
[398089313,1765363872708,-500.0,0.00014794,2]
[398089314,1765363872718,-1025.9,0.00014794,2]
[398089315,1765363872729,-500.0,0.00014794,2]
[398089316,1765363872739,-500.0,0.00014794,2]
[398089317,1765363872748,-540.25,0.00014794,2]
[398089318,1765363872758,-439.44033668,0.00014794,2]
[398089319,1765363872768,-555.46,0.00014794,2]
[398089320,1765363872779,-500.0,0.00014794,2]
[398089321,1765363872789,-832.02,0.00014794,2]
[398089322,1765363872799,-500.0,0.00014794,2]
[398089323,1765363872810,-200.97399315,0.00014794,2]
[398089324,1765363872821,-635.2,0.00014794,2]
[398089325,1765363872833,-500.0,0.00014794,2]
[398089326,1765363872843,-500.0,0.00014794,2]
[398089327,1765363872852,-515.11,0.00014794,2]
[398089328,1765363872862,-500.0,0.00014794,2]
[398089329,1765363872872,-520.93,0.00014794,2]
[398089330,1765363872888,-557.58,0.00014794,2]
[398089331,1765363872908,-695.06,0.00014794,2]
[398089332,1765363872918,-500.0,0.00014794,2]
[398089333,1765363872929,-500.0,0.00014794,2]
[398089334,1765363872940,-500.0,0.00014794,2]
[398089335,1765363872950,-762.87,0.00014794,2]
[398089336,1765363872965,-2138.7,0.00014794,2]
[398089337,1765363872976,-765.27,0.00014794,2]
[398089338,1765363872986,-1364.77,0.00014794,2]
[398089339,1765363872996,-572.05,0.00014794,2]
[398089340,1765363873008,-500.0,0.00014794,2]
[398089341,1765363873019,-500.0,0.00014794,2]
[398089342,1765363873030,-500.0,0.00014794,2]
[398089343,1765363873045,-516.6,0.00014794,2]
[398089344,1765363873056,-500.0,0.00014794,2]
[398089345,1765363873067,-951.41,0.00014794,2]
[398089346,1765363873079,-679.67,0.00014794,2]
[398089347,1765363873089,-500.0,0.00014794,2]
[398089348,1765363873099,-500.0,0.00014794,2]
[398089349,1765363873109,-718.05,0.00014794,2]
[398089350,1765363873121,-729.92,0.00014794,2]
[398089351,1765363873131,-500.0,0.00014794,2]
[398089352,1765363873141,-531.49,0.00014794,2]
[398089353,1765363873151,-500.0,0.00014794,2]
[398089354,1765363873390,-500.0,0.00014794,2]
[398089355,1765363873400,-503.74,0.00014794,2]
[398089356,1765363873410,-641.54,0.00014794,2]
[398089357,1765363873419,-1067.97,0.00014794,2]
[398089358,1765363873429,-500.0,0.00014794,2]
[398089359,1765363873439,-500.0,0.00014794,2]
[398089360,1765363873448,-539.19,0.00014794,2]
[398089361,1765363873458,-2594.14,0.00014794,2]
[398089362,1765363873468,-500.0,0.00014794,2]
[398089363,1765363873478,-500.0,0.00014794,2]
[398089364,1765363873488,-500.0,0.00014794,2]
[398089365,1765363873498,-500.0,0.00014794,2]
[398089366,1765363873508,-500.0,0.00014794,2]
[398089367,1765363873518,-500.0,0.00014794,2]
[398089368,1765363873527,-545.18,0.00014794,2]
[398089369,1765363873537,-1000.0,0.00014794,2]
[398089370,1765363873546,-500.0,0.00014794,2]
[398089371,1765363873556,-1366.9,0.00014794,2]
[398089372,1765363873566,-500.0,0.00014794,2]
[398089373,1765363873576,-780.91,0.00014794,2]
[398089374,1765363873587,-500.0,0.00014794,2]
[398089375,1765363873597,-904.37,0.00014794,2]
[398089376,1765363873606,-500.0,0.00014794,2]
[398089377,1765363873615,-500.0,0.00014794,2]
[398089378,1765363873625,-500.0,0.00014794,2]
[398089379,1765363873635,-1011.3,0.00014794,2]
[398089380,1765363873645,-1977.85,0.00014794,2]
[398089381,1765363873654,-500.0,0.00014794,2]
[398089382,1765363873664,-500.0,0.00014794,2]
[398089383,1765363873673,-674.04,0.00014794,2]
[398089384,1765363873683,-530.92,0.00014794,2]
[398089385,1765363873692,-500.0,0.00014794,2]
[398089386,1765363873702,-515.73,0.00014794,2]
[398089387,1765363873711,-500.0,0.00014794,2]
[398089388,1765363873720,-500.0,0.00014794,2]
[398089389,1765363873729,-500.0,0.00014794,2]
[398089390,1765363873739,-746.65,0.00014794,2]
[398089391,1765363873749,-618.95,0.00014794,2]
[398089392,1765363873758,-500.0,0.00014794,2]
[398089393,1765363873767,-500.0,0.00014794,2]
[398089394,1765363873777,-500.0,0.00014794,2]
[398089395,1765363873786,-562.39,0.00014794,2]
[398089396,1765363873796,-514.85,0.00014794,2]
[398089397,1765363873805,-500.0,0.00014794,2]
[398089398,1765363873815,-594.84,0.00014794,2]
[398089399,1765363873825,-2704.59,0.00014794,2]
[398089400,1765363873837,-1311.95,0.00014794,2]
[398089401,1765363873847,-672.92,0.00014794,2]
[398089402,1765363873856,-500.0,0.00014794,2]
[398089403,1765363873865,-500.0,0.00014794,2]
[398089404,1765363873875,-500.0,0.00014794,2]
[398089405,1765363873885,-500.0,0.00014794,2]
[398089406,1765363873895,-536.09,0.00014794,2]
[398089407,1765363873905,-636.09,0.00014794,2]
[398089408,1765363873915,-500.0,0.00014794,2]
[398089409,1765363873925,-623.50790923,0.00014794,2]
[398089410,1765363873934,-518.62,0.00014794,2]
[398089411,1765363873944,-500.0,0.00014794,2]
[398089412,1765363873956,-954.03,0.00014794,2]
[398089413,1765363873967,-2690.76,0.00014794,2]
[398089414,1765363873977,-500.0,0.00014794,2]
[398089415,1765363873988,-500.0,0.00014794,2]
[398089416,1765363873999,-500.0,0.00014794,2]
[398089417,1765363874008,-500.0,0.00014794,2]
[398089418,1765363874017,-539.25,0.00014794,2]
[398089419,1765363874028,-500.0,0.00014794,2]
[398089420,1765363874040,-500.0,0.00014794,2]
[398089421,1765363874050,-669.46,0.00014794,2]
[398089422,1765363874060,-500.0,0.00014794,2]
[398089423,1765363874070,-500.0,0.00014794,2]
[398089424,1765363874080,-500.0,0.00014794,2]
[398089425,1765363874089,-500.0,0.00014794,2]
[398089426,1765363874099,-500.0,0.00014794,2]
[398089427,1765363874109,-500.0,0.00014794,2]
[398089428,1765363874119,-500.0,0.00014794,2]
[398089429,1765363874128,-522.23,0.00014794,2]
[398089430,1765363874137,-633.04,0.00014794,2]
[398089431,1765363874147,-500.0,0.00014794,2]
[398089432,1765363874156,-854.51,0.00014794,2]
[398089433,1765363874166,-500.0,0.00014794,2]
[398089434,1765363874175,-500.0,0.00014794,2]
[398089435,1765363874185,-478.0,0.00014852,2]
[398089436,1765363874196,-953.0,0.00014887,2]
[398089437,1765363874205,-500.0,0.000149,2]
[398089438,1765363874215,-1000.0,0.000149,3]
[398089439,1765363874224,-376.62,0.000149,5]
[398089440,1765363874236,-478.0,0.00014911,2]
[398089441,1765363874245,-1162.0,0.00014919,2]
[398089442,1765363874255,-195.1772435,0.00014933,2]
[398089443,1765363874265,-953.0,0.00014967,2]
[398089444,1765363874274,-1402.5557479,0.00014968,2]
[398089445,1765363874284,-171.85,0.00014969,2]
[398089446,1765363874293,-433.0,0.00014981,2]
[398089447,1765363874304,-2435.64011008,0.00014981,2]
[398089448,1765363874313,-2037.89515739,0.00015,2]
[398089449,1765363874323,-2136.72413593,0.00015,2]
[398089450,1765363874332,-5000.0,0.00015,2]
[398089451,1765363874344,-12052.71943996,0.00015,2]
[398089452,1765363874354,-3408.26204866,0.00015,2]
[398089453,1765363874364,-150.0,0.00015,2]
[398089454,1765363874373,-1260.93,0.00015,2]
[398089455,1765363874385,-478.0,0.00015002,2]
[398089456,1765363874394,-478.0,0.00015044,2]
[398089457,1765363874403,-166.64,0.00015047,2]
[398089458,1765363874413,-1162.0,0.00015056,2]
[398089459,1765363874422,-855.68,0.00015061,2]
[398089460,1765363874431,-500.0,0.00015067,2]
[398089461,1765363874441,-500.0,0.00015068,2]
[398089462,1765363874452,-500.0,0.00015068,2]
[398089463,1765363874461,-500.0,0.00015068,2]
[398089464,1765363874473,-500.0,0.00015068,2]
[398089465,1765363874484,-500.0,0.00015068,2]
[398089466,1765363874493,-500.0,0.00015068,2]
[398089467,1765363874502,-947.85,0.00015068,2]
[398089468,1765363874512,-500.0,0.00015068,2]
[398089469,1765363874521,-500.0,0.00015068,2]
[398089470,1765363874531,-500.0,0.00015068,2]
[398089471,1765363874542,-516.08024577,0.00015068,2]
[398089472,1765363874551,-500.0,0.00015068,2]
[398089473,1765363874561,-500.0,0.00015068,2]
[398089474,1765363874573,-503.11961164,0.00015068,2]
[398089475,1765363874583,-500.0,0.00015068,2]
[398089476,1765363874593,-500.0,0.00015068,2]
[398089477,1765363874603,-587.0,0.00015068,2]
[398089478,1765363874612,-500.0,0.00015068,2]
[398089479,1765363874621,-500.0,0.00015068,2]
[398089480,1765363874630,-500.0,0.00015068,2]
[398089481,1765363874639,-500.0,0.00015068,2]
[398089482,1765363874648,-500.0,0.00015068,2]
[398089483,1765363874657,-500.0,0.00015068,2]
[398089484,1765363874666,-501.33,0.00015068,2]
[398089485,1765363874675,-500.0,0.00015068,2]
[398089486,1765363874685,-500.0,0.00015068,2]
[398089487,1765363874695,-500.0,0.00015068,2]
[398089488,1765363874705,-576.82,0.00015068,2]
[398089489,1765363874715,-500.0,0.00015068,2]
[398089490,1765363874725,-500.0,0.00015068,2]
[398089491,1765363874735,-500.0,0.00015068,2]
[398089492,1765363874745,-500.0,0.00015068,2]
[398089493,1765363874754,-500.0,0.00015068,2]
[398089494,1765363874763,-500.0,0.00015068,2]
[398089495,1765363874773,-500.0,0.00015068,2]
[398089496,1765363874783,-532.94,0.00015068,2]
[398089497,1765363874792,-526.76,0.00015068,2]
[398089498,1765363874802,-685.62,0.00015068,2]
[398089499,1765363874811,-500.0,0.00015068,2]
[398089500,1765363874820,-500.0,0.00015068,2]
[398089501,1765363874830,-778.96,0.00015068,2]
[398089502,1765363874840,-500.0,0.00015068,2]
[398089503,1765363874849,-500.0,0.00015068,2]
[398089504,1765363874858,-500.0,0.00015068,2]
[398089505,1765363874867,-500.0,0.00015068,2]
[398089506,1765363874876,-500.0,0.00015068,2]
[398089507,1765363874886,-594.25,0.00015068,2]
[398089508,1765363874895,-500.0,0.00015068,2]
[398089509,1765363874905,-500.0,0.00015068,2]
[398089510,1765363874917,-695.24,0.00015068,2]
[398089511,1765363874926,-500.0,0.00015068,2]
[398089512,1765363874935,-500.0,0.00015068,2]
[398089513,1765363874945,-500.0,0.00015068,2]
[398089514,1765363874954,-500.0,0.00015068,2]
[398089515,1765363874969,-475.22029717,0.00015068,2]
[398089516,1765363874978,-500.0,0.00015068,2]
[398089517,1765363874988,-500.0,0.00015068,2]
[398089518,1765363875000,-500.0,0.00015068,2]
[398089519,1765363875011,-571.54,0.00015068,2]
[398089520,1765363875021,-500.0,0.00015068,2]
[398089521,1765363875031,-500.0,0.00015068,2]
[398089522,1765363875042,-500.0,0.00015068,2]
[398089523,1765363875051,-500.0,0.00015068,2]
[398089524,1765363875062,-575.21531751,0.00015068,2]
[398089525,1765363875071,-500.0,0.00015068,2]
[398089526,1765363875084,-500.0,0.00015068,2]
[398089527,1765363875094,-500.0,0.00015068,2]
[398089528,1765363875105,-537.71,0.00015068,2]
[398089529,1765363875115,-500.0,0.00015068,2]
[398089530,1765363875126,-500.0,0.00015068,2]
[398089531,1765363875135,-500.0,0.00015068,2]
[398089532,1765363875145,-526.55,0.00015068,2]
[398089533,1765363875154,-622.54,0.00015068,2]
[398089534,1765363875163,-500.0,0.00015068,2]
[398089535,1765363875171,-500.0,0.00015068,2]
[398089536,1765363875180,-500.0,0.00015068,2]
[398089537,1765363875189,-569.43,0.00015068,2]
[398089538,1765363875198,-500.0,0.00015068,2]
[398089539,1765363875207,-500.0,0.00015068,2]
[398089540,1765363875217,-579.38544177,0.00015068,2]
[398089541,1765363875226,-614.97,0.00015068,2]
[398089542,1765363875236,-188.16224403,0.00015068,2]
[398089543,1765363875245,-500.0,0.00015068,2]
[398089544,1765363875254,-500.0,0.00015068,2]
[398089545,1765363875263,-500.0,0.00015068,2]
[398089546,1765363875273,-500.0,0.00015068,2]
[398089547,1765363875282,-500.0,0.00015068,2]
[398089548,1765363875292,-500.0,0.00015068,2]
[398089549,1765363875302,-500.0,0.00015068,2]
[398089550,1765363875313,-500.0,0.00015068,2]
[398089551,1765363875323,-500.0,0.00015068,2]
[398089552,1765363875332,-500.0,0.00015068,2]
[398089553,1765363875342,-500.0,0.00015068,2]
[398089554,1765363875351,-521.75,0.00015068,2]
[398089555,1765363875363,-691.35,0.00015068,2]
[398089556,1765363875373,-500.0,0.00015068,2]
[398089557,1765363875383,-500.0,0.00015068,2]
[398089558,1765363875394,-500.0,0.00015068,2]
[398089559,1765363875405,-831.61,0.00015068,2]
[398089560,1765363875416,-580.62,0.00015068,2]
[398089561,1765363875428,-607.34,0.00015068,2]
[398089562,1765363875439,-578.00278915,0.00015068,2]
[398089563,1765363875449,-558.66,0.00015068,2]
[398089564,1765363875459,-500.0,0.00015068,2]
[398089565,1765363875468,-500.0,0.00015068,2]
[398089566,1765363875479,-500.0,0.00015068,2]
[398089567,1765363875490,-500.0,0.00015068,2]
[398089568,1765363875499,-687.2,0.00015068,2]
[398089569,1765363875509,-500.0,0.00015068,2]
[398089570,1765363875519,-697.92,0.00015068,2]
[398089571,1765363875529,-500.0,0.00015068,2]
[398089572,1765363875540,-663.24,0.00015068,2]
[398089573,1765363875551,-500.0,0.00015068,2]
[398089574,1765363875563,-500.0,0.00015068,2]
[398089575,1765363875572,-500.0,0.00015068,2]
[398089576,1765363875581,-632.86,0.00015068,2]
[398089577,1765363875590,-500.0,0.00015068,2]
[398089578,1765363875600,-500.0,0.00015068,2]
[398089579,1765363875609,-516.81,0.00015068,2]
[398089580,1765363875619,-528.53,0.00015068,2]
[398089581,1765363875628,-500.0,0.00015068,2]
[398089582,1765363875637,-500.0,0.00015068,2]
[398089583,1765363875646,-588.94,0.00015068,2]
[398089584,1765363875655,-575.19,0.00015068,2]
[398089585,1765363875665,-550.51,0.00015068,2]
[398089586,1765363875674,-520.64,0.00015068,2]
[398089587,1765363875683,-500.0,0.00015068,2]
[398089588,1765363875692,-500.0,0.00015068,2]
[398089589,1765363875758,-1386.52,0.00015068,2]
[398089590,1765363875770,-500.0,0.00015068,2]
[398089591,1765363875779,-500.0,0.00015068,2]
[398089592,1765363875788,-500.0,0.00015068,2]
[398089593,1765363875797,-626.72,0.00015068,2]
[398089594,1765363875806,-540.35,0.00015068,2]
[398089595,1765363875815,-500.0,0.00015068,2]
[398089596,1765363875825,-500.0,0.00015068,2]
[398089597,1765363875833,-500.0,0.00015068,2]
[398089598,1765363875843,-413.54953824,0.00015068,2]
[398089599,1765363875852,-500.0,0.00015068,2]
[398089600,1765363875861,-500.0,0.00015068,2]
[398089601,1765363875870,-500.0,0.00015068,2]
[398089602,1765363875879,-500.0,0.00015068,2]
[398089603,1765363875889,-1096.94,0.00015068,2]
[398089604,1765363875898,-547.45,0.00015068,2]
[398089605,1765363875908,-1026.31,0.00015068,2]
[398089606,1765363875918,-500.0,0.00015068,2]
[398089607,1765363875927,-500.0,0.00015068,2]
[398089608,1765363875936,-500.0,0.00015068,2]
[398089609,1765363875945,-500.0,0.00015068,2]
[398089610,1765363875955,-500.0,0.00015068,2]
[398089611,1765363875969,-500.0,0.00015068,2]
[398089612,1765363875978,-851.24,0.00015068,2]
[398089613,1765363875987,-504.48,0.00015068,2]
[398089614,1765363875996,-500.0,0.00015068,2]
[398089615,1765363876006,-500.0,0.00015068,2]
[398089616,1765363876016,-500.0,0.00015068,2]
[398089617,1765363876026,-500.0,0.00015068,2]
[398089618,1765363876038,-522.11,0.00015068,2]
[398089619,1765363876047,-500.0,0.00015068,2]
[398089620,1765363876056,-500.0,0.00015068,2]
[398089621,1765363876066,-500.0,0.00015068,2]
[398089622,1765363876075,-610.27,0.00015068,2]
[398089623,1765363876086,-687.03,0.00015068,2]
[398089624,1765363876095,-500.0,0.00015068,2]
[398089625,1765363876105,-500.0,0.00015068,2]
[398089626,1765363876117,-500.0,0.00015068,2]
[398089627,1765363876127,-500.0,0.00015068,2]
[398089628,1765363876138,-500.0,0.00015068,2]
[398089629,1765363876148,-500.0,0.00015068,2]
[398089630,1765363876157,-659.53,0.00015068,2]
[398089631,1765363876166,-1423.99,0.00015068,2]
[398089632,1765363876175,-605.66,0.00015068,2]
[398089633,1765363876184,-500.0,0.00015068,2]
[398089634,1765363876193,-500.0,0.00015068,2]
[398089635,1765363876201,-535.23,0.00015068,2]
[398089636,1765363876210,-500.0,0.00015068,2]
[398089637,1765363876220,-500.0,0.00015068,2]
[398089638,1765363876229,-500.0,0.00015068,2]
[398089639,1765363876239,-500.0,0.00015068,2]
[398089640,1765363876248,-943.64,0.00015068,2]
[398089641,1765363876257,-500.0,0.00015068,2]
[398089642,1765363876266,-605.73,0.00015068,2]
[398089643,1765363876275,-500.0,0.00015068,2]
[398089644,1765363876284,-381.51396453,0.00015068,2]
[398089645,1765363876292,-694.43,0.00015068,2]
[398089646,1765363876301,-500.0,0.00015068,2]
[398089647,1765363876311,-534.57,0.00015068,2]
[398089648,1765363876320,-500.0,0.00015068,2]
[398089649,1765363876329,-637.14,0.00015068,2]
[398089650,1765363876338,-500.0,0.00015068,2]
[398089651,1765363876347,-500.0,0.00015068,2]
[398089652,1765363876356,-500.0,0.00015068,2]
[398089653,1765363876365,-500.0,0.00015068,2]
[398089654,1765363876373,-500.0,0.00015068,2]
[398089655,1765363876382,-500.0,0.00015068,2]
[398089656,1765363876391,-1035.09,0.00015068,2]
[398089657,1765363876400,-500.0,0.00015068,2]
[398089658,1765363876409,-638.9,0.00015068,2]
[398089659,1765363876419,-620.01822057,0.00015068,2]
[398089660,1765363876428,-500.0,0.00015068,2]
[398089661,1765363876437,-590.56,0.00015068,2]
[398089662,1765363876446,-500.0,0.00015068,2]
[398089663,1765363876455,-242.55471055,0.00015068,2]
[398089664,1765363876464,-500.0,0.00015068,2]
[398089665,1765363876474,-823.36,0.00015068,2]
[398089666,1765363876483,-500.0,0.00015068,2]
[398089667,1765363876492,-610.31,0.00015068,2]
[398089668,1765363876502,-500.0,0.00015068,2]
[398089669,1765363876511,-500.0,0.00015068,2]
[398089670,1765363876519,-500.0,0.00015068,2]
[398089671,1765363876528,-296.55817106,0.00015068,2]
[398089672,1765363876538,-500.0,0.00015068,2]
[398089673,1765363876547,-500.0,0.00015068,2]
[398089674,1765363876555,-620.79,0.00015068,2]
[398089675,1765363876564,-583.90750294,0.00015068,2]
[398089676,1765363876573,-888.67,0.00015068,2]
[398089677,1765363876582,-500.0,0.00015068,2]
[398089678,1765363876591,-500.0,0.00015068,2]
[398089679,1765363876599,-500.0,0.00015068,2]
[398089680,1765363876608,-601.0,0.00015068,2]
[398089681,1765363876618,-500.0,0.00015068,2]
[398089682,1765363876626,-500.0,0.00015068,2]
[398089683,1765363876635,-619.05,0.00015068,2]
[398089684,1765363876644,-500.0,0.00015068,2]
[398089685,1765363876653,-500.0,0.00015068,2]
[398089686,1765363876661,-718.66,0.00015068,2]
[398089687,1765363876670,-500.0,0.00015068,2]
[398089688,1765363876679,-500.0,0.00015068,2]
[398089689,1765363876688,-575.76,0.00015068,2]
[398089690,1765363876697,-522.38,0.00015068,2]
[398089691,1765363876706,-500.0,0.00015068,2]
[398089692,1765363876715,-500.0,0.00015068,2]
[398089693,1765363876725,-500.0,0.00015068,2]
[398089694,1765363876735,-500.0,0.00015068,2]
[398089695,1765363876744,-500.0,0.00015068,2]
[398089696,1765363876753,-528.5,0.00015068,2]
[398089697,1765363876762,-500.0,0.00015068,2]
[398089698,1765363876771,-500.0,0.00015068,2]
[398089699,1765363876780,-500.0,0.00015068,2]
[398089700,1765363876789,-500.0,0.00015068,2]
[398089701,1765363876798,-395.92421516,0.00015068,2]
[398089702,1765363876808,-500.0,0.00015068,2]
[398089703,1765363876816,-500.0,0.00015068,2]
[398089704,1765363876827,-582.05,0.00015068,2]
[398089705,1765363876836,-500.0,0.00015068,2]
[398089706,1765363876845,-500.0,0.00015068,2]
[398089707,1765363876855,-1023.47,0.00015068,2]
[398089708,1765363876864,-500.0,0.00015068,2]
[398089709,1765363876874,-500.0,0.00015068,2]
[398089710,1765363876883,-500.0,0.00015068,2]
[398089711,1765363876893,-2989.18,0.00015068,2]
[398089712,1765363876902,-500.0,0.00015068,2]
[398089713,1765363876911,-555.46,0.00015068,2]
[398089714,1765363876919,-500.0,0.00015068,2]
[398089715,1765363876928,-500.0,0.00015068,2]
[398089716,1765363876937,-500.0,0.00015068,2]
[398089717,1765363876947,-1304.2,0.00015068,2]
[398089718,1765363876960,-500.0,0.00015068,2]
[398089719,1765363876970,-729.87,0.00015068,2]
[398089720,1765363876979,-2869.58,0.00015068,2]
[398089721,1765363876988,-500.0,0.00015068,2]
[398089722,1765363876999,-500.0,0.00015068,2]
[398089723,1765363877009,-500.0,0.00015068,2]
[398089724,1765363877018,-658.56,0.00015068,2]
[398089725,1765363877028,-500.0,0.00015068,2]
[398089726,1765363877038,-501.94,0.00015068,2]
[398089727,1765363877047,-500.0,0.00015068,2]
[398089728,1765363877058,-500.0,0.00015068,2]
[398089729,1765363877069,-500.0,0.00015068,2]
[398089730,1765363877080,-500.0,0.00015068,2]
[398089731,1765363877091,-500.0,0.00015068,2]
[398089732,1765363877101,-548.02,0.00015068,2]
[398089733,1765363877113,-500.0,0.00015068,2]
[398089734,1765363877124,-500.0,0.00015068,2]
[398089735,1765363877135,-500.0,0.00015068,2]
[398089736,1765363877144,-500.0,0.00015068,2]
[398089737,1765363877154,-500.0,0.00015068,2]
[398089738,1765363877163,-500.0,0.00015068,2]
[398089739,1765363877174,-970.77,0.00015068,2]
[398089740,1765363877185,-500.0,0.00015068,2]
[398089741,1765363877196,-1025.9,0.00015068,2]
[398089742,1765363877205,-500.0,0.00015068,2]
[398089743,1765363877216,-500.0,0.00015068,2]
[398089744,1765363877226,-540.25,0.00015068,2]
[398089745,1765363877236,-555.46,0.00015068,2]
[398089746,1765363877246,-500.0,0.00015068,2]
[398089747,1765363877257,-832.02,0.00015068,2]
[398089748,1765363877266,-500.0,0.00015068,2]
[398089749,1765363877275,-635.2,0.00015068,2]
[398089750,1765363877285,-500.0,0.00015068,2]
[398089751,1765363877293,-500.0,0.00015068,2]
[398089752,1765363877302,-515.11,0.00015068,2]
[398089753,1765363877311,-500.0,0.00015068,2]
[398089754,1765363877320,-520.93,0.00015068,2]
[398089755,1765363877330,-557.58,0.00015068,2]
[398089756,1765363877339,-695.06,0.00015068,2]
[398089757,1765363877350,-500.0,0.00015068,2]
[398089758,1765363877359,-500.0,0.00015068,2]
[398089759,1765363877368,-500.0,0.00015068,2]
[398089760,1765363877377,-762.87,0.00015068,2]
[398089761,1765363877385,-2138.7,0.00015068,2]
[398089762,1765363877394,-765.27,0.00015068,2]
[398089763,1765363877404,-1364.77,0.00015068,2]
[398089764,1765363877413,-572.05,0.00015068,2]
[398089765,1765363877422,-500.0,0.00015068,2]
[398089766,1765363877431,-500.0,0.00015068,2]
[398089767,1765363877440,-500.0,0.00015068,2]
[398089768,1765363877449,-516.6,0.00015068,2]
[398089769,1765363877459,-500.0,0.00015068,2]
[398089770,1765363877468,-951.41,0.00015068,2]
[398089771,1765363877477,-679.67,0.00015068,2]
[398089772,1765363877485,-500.0,0.00015068,2]
[398089773,1765363877495,-500.0,0.00015068,2]
[398089774,1765363877503,-718.05,0.00015068,2]
[398089775,1765363877512,-729.92,0.00015068,2]
[398089776,1765363877521,-500.0,0.00015068,2]
[398089777,1765363877530,-531.49,0.00015068,2]
[398089778,1765363877538,-500.0,0.00015068,2]
[398089779,1765363877547,-500.0,0.00015068,2]
[398089780,1765363877556,-503.74,0.00015068,2]
[398089781,1765363877565,-641.54,0.00015068,2]
[398089782,1765363877574,-1067.97,0.00015068,2]
[398089783,1765363877582,-500.0,0.00015068,2]
[398089784,1765363877591,-500.0,0.00015068,2]
[398089785,1765363877600,-539.19,0.00015068,2]
[398089786,1765363877609,-2594.14,0.00015068,2]
[398089787,1765363877618,-500.0,0.00015068,2]
[398089788,1765363877626,-431.52732052,0.00015068,2]
[398089789,1765363877635,-500.0,0.00015068,2]
[398089790,1765363877644,-500.0,0.00015068,2]
[398089791,1765363877653,-500.0,0.00015068,2]
[398089792,1765363877662,-500.0,0.00015068,2]
[398089793,1765363877672,-545.18,0.00015068,2]
[398089794,1765363877680,-1000.0,0.00015068,2]
[398089795,1765363877689,-500.0,0.00015068,2]
[398089796,1765363877699,-1366.9,0.00015068,2]
[398089797,1765363877709,-500.0,0.00015068,2]